[Event "Charlotte Summer IM B 2022"]
[Site "Charlotte"]
[Date "2022.07.27"]
[Round "6.1"]
[White "Zaloznyy, Mike"]
[Black "Wang, Tianqi"]
[Result "0-1"]
[ECO "D02"]
[WhiteElo "2171"]
[BlackElo "2402"]
[Annotator "TA"]
[PlyCount "120"]
[EventDate "2022.07.24"]
[EventType "tourn"]
[EventCountry "USA"]
[SourceTitle "playchess.com"]
[Source "ChessBase"]
[SourceQuality "1"]
[TimeControl "5400+30"]

{[%evp 9,120,0,8,4,26,0,13,10,12,2,11,0,0,-13,-8,-27,-26,-30,-11,-33,-28,-42,-40,-88,-61,-57,-44,-42,-42,-42,-54,-56,-34,-66,-56,-54,-59,-85,-78,-88,-40,-36,-35,-25,-31,-30,-31,-42,-16,-23,-39,-39,-34,-38,-37,-66,-41,-45,-51,-45,-53,-51,-51,-45,-3,-12,0,0,0,0,0,-42,-28,-47,-45,-60,-48,-98,0,0,0,0,0,-33,-35,-414,-412,-380,-401,-385,-371,-5722,-5639,-3138,-2931,-12844,-12833,-12835,-12835,-12836,-12837,-12829,-12829,-12834,-1718,-12839,-12840,-12840,-12840,-12843,-12843,-12844,-12844]} 1. d4 {[%emt 0:04:33]} d5 {[%emt 0:00:17]} 2. Nf3 {[%emt 0:00:11]} c6 {[%emt 0:00:11]} 3. c3 {[%emt 0:00:06]} Bf5 {[%emt 0:00:31]} 4. Bf4 {[%emt 0:01:53]} Qb6 {[%emt 0:00:21]} 5. Qb3 {[%emt 0:00:41]} Nd7 {[%emt 0:00:31]} 6. Nbd2 {[%emt 0:01:41] D02: 1 d4 d5 2 Nf3 sidelines, including 2...Nf6 3 g3 and 2...Nf6 3 Bf4.} e6 {[%emt 0:03:37]} 7. e3 {[%emt 0:04:09]} h6 {[%emt 0:00:11]} 8. h3 {[%emt 0:01:42] The position is equal.} Ngf6 {[%emt 0:00:20]} 9. Be2 {[%emt 0:02:24]} Be7 {[%emt 0:00:06]} 10. Bh2 {[%emt 0:02:45]} O-O {[%emt 0:01:11] [#]} 11. c4 $146 {[%emt 0:03:40]} ({Predecessor:} 11. O-O Rfc8 12. Rfe1 a5 13. a3 Qxb3 14. Nxb3 Nb6 15. Nc1 Na4 16. Ra2 Bb1 17. Ra1 {0-1 (42) Kubicek,R (2070)-Koutsin,S (2415) Rymarov 1999}) 11... Qxb3 {[%emt 0:01:12]} 12. Nxb3 {[%emt 0:01:44]} dxc4 {[%emt 0:00:11]} 13. Bxc4 {[%emt 0:00:44]} Nb6 {[%emt 0:00:03]} 14. Be2 {[%emt 0:02:38]} Na4 {[%emt 0:00:14]} 15. O-O {[%emt 0:03:00]} a5 {[%emt 0:07:11]} 16. Nc1 {[%emt 0:21:16]} (16. Ne5 $15) 16... Rfc8 {[%emt 0:17:04] Black is more active.} 17. Ne5 {[%emt 0:05:11]} Nd5 {[%emt 0:10:02]} 18. Bf3 {[%emt 0:03:50] e4 is the strong threat.} Bh7 {[%emt 0:02:46]} ({Much less strong is} 18... Nxb2 19. e4 $16) 19. Ned3 {[%emt 0:03:24]} Nb4 {[%emt 0:00:40]} 20. Rd1 {[%emt 0:04:57]} Ra7 {[%emt 0:00:23]} 21. Nxb4 {[%emt 0:07:35]} axb4 {[%emt 0:00:16]} 22. Rd2 {[%emt 0:01:04]} Bg6 {[%emt 0:07:36]} 23. Bf4 {[%emt 0:00:28]} c5 {[%emt 0:10:55]} 24. dxc5 {[%emt 0:05:46]} Nxc5 {[%emt 0:00:24]} ({Black should try} 24... Bf6 $1 $17 25. Nb3 Bxb2) 25. Bd6 $15 {[%emt 0:11:45]} Bf6 {[%emt 0:02:04] Threatens to win with ...b6.} 26. Bxc5 {[%emt 0:00:01]} Rxc5 {[%emt 0:00:14]} 27. Nb3 {[%emt 0:00:51]} Rc8 {[%emt 0:02:45]} 28. a4 {[%emt 0:00:05]} Rc2 {[%emt 0:01:41]} 29. Rxc2 {[%emt 0:01:50]} Bxc2 {[%emt 0:00:10] This bishop pair is nice.} 30. Nd4 {[%emt 0:00:01]} Bxd4 {[%emt 0:03:10]} 31. exd4 {[%emt 0:00:07][%mdl 4096] Endgame KRB-KRB} b6 {[%emt 0:00:03]} 32. Bc6 {[%emt 0:06:28]} Rc7 {[%emt 0:00:11]} (32... Bb3 $5 {[%cal Ra7c7]}) 33. d5 {[%emt 0:00:00]} Bb3 {[%emt 0:03:02]} 34. a5 {[%emt 0:00:00]} bxa5 {[%emt 0:00:13]} (34... exd5 $2 35. axb6 $1 Rxc6 36. Ra8+ Kh7 37. b7 $18) 35. Rxa5 {[%emt 0:00:00]} exd5 {[%emt 0:00:58]} 36. Ra6 {[%emt 0:01:06]} Rc8 {[%emt 0:19:22] Black wants to play ...d4.} 37. Rb6 {[%emt 0:00:23]} Ba2 {[%emt 0:00:34]} 38. Kf1 {[%emt 0:00:31]} d4 {[%emt 0:01:23]} 39. Ke1 {[%emt 0:00:49]} Bb1 {[%emt 0:00:21][%cal Ob4b3]} 40. Kd2 {[%emt 0:00:26]} b3 $1 {[%emt 0:00:23]} 41. Ra6 {[%emt 0:00:33]} Rc7 {[%emt 0:00:21]} 42. f3 {[%emt 0:00:25]} g6 {[%emt 0:00:20]} 43. Rb6 {[%emt 0:00:43] [#]} (43. Kd1 $15) 43... Bf5 {[%emt 0:01:46]} (43... h5 $1 $17) 44. g4 $11 {[%emt 0:00:21]} Be6 {[%emt 0:02:02]} 45. Kd3 {[%emt 0:00:17]} Ra7 {[%emt 0:00:07]} 46. Rb8+ {[%emt 0:00:21]} Kg7 {[%emt 0:00:17] White must now prevent ...Ra2.} 47. Ra8 $2 {[%emt 0:00:01][%mdl 8192] Loses the game.} (47. f4 $15) 47... Ra2 $19 {[%emt 0:00:16]} 48. Kxd4 {[%emt 0:00:53]} Rxb2 {[%emt 0:00:04]} 49. Rb8 {[%emt 0:00:24]} Rh2 {[%emt 0:00:26]} 50. Bd5 $2 {[%emt 0:00:22]} (50. Rb7) 50... Rd2+ {[%emt 0:00:05] Black is clearly winning.} 51. Ke3 {[%emt 0:00:43]} Rxd5 {[%emt 0:00:37]} 52. Rxb3 {[%emt 0:00:04] KRB-KR} Rd1 {[%emt 0:00:17]} 53. Rb6 {[%emt 0:00:21]} Rh1 {[%emt 0:00:25]} 54. Kf2 {[%emt 0:00:04]} Rxh3 {[%emt 0:00:16]} 55. Kg2 {[%emt 0:00:13]} Rh4 {[%emt 0:00:05]} 56. Rb1 {[%emt 0:00:46]} h5 {[%emt 0:00:36][%cal Bh6h5,Bh5g4][%mdl 32]} 57. Kg3 {[%emt 0:00:26]} g5 {[%emt 0:00:03]} 58. Rb5 {[%emt 0:00:05]} Kf6 {[%emt 0:00:16]} 59. Rc5 {[%emt 0:01:00]} hxg4 {[%emt 0:00:10]} 60. f4 {[%emt 0:00:23]} Rh3+ {[%emt 0:00:05] Weighted Error Value: White=0.60/Black=0.22 (precise)} 0-1

[Event "Charlotte Summer IM B 2022"]
[Site "Charlotte"]
[Date "2022.07.27"]
[Round "6.2"]
[White "Eckert, Doug"]
[Black "Avila Rodriguez, Joshua Ad"]
[Result "0-1"]
[ECO "D11"]
[WhiteElo "2177"]
[BlackElo "2210"]
[Annotator "TA"]
[PlyCount "90"]
[EventDate "2022.07.24"]
[EventType "tourn"]
[EventCountry "USA"]
[SourceTitle "playchess.com"]
[Source "ChessBase"]
[SourceQuality "1"]
[TimeControl "5400+30"]

{[%evp 9,90,14,16,0,0,0,0,6,0,5,25,7,16,0,17,0,0,-20,0,0,0,-17,14,0,0,0,0,-11,23,18,27,36,93,100,128,25,25,18,15,-21,0,-31,66,0,0,0,0,0,0,0,-7,-29,-20,-42,0,-14,-18,-24,-29,-31,-35,-243,-227,-220,-220,-226,-54,-388,-369,-382,-381,-572,-563,-568,-560,-578,-564,-634,-622,-618,-606,-691,-663]} 1. d4 {[%emt 0:01:39]} d5 {[%emt 0:00:32]} 2. c4 {[%emt 0:00:20]} c6 {[%emt 0:00:05]} 3. Nf3 {[%emt 0:00:09]} Nf6 {[%emt 1:31:23]} 4. g3 {[%emt 0:00:10]} Bf5 {[%emt 0:00:00]} 5. Nc3 {[%emt 0:00:18]} e6 {[%emt 0:00:00]} 6. Qb3 {[%emt 0:00:18] D11: Slav Defence: 3 Nf3 sidelines and 3...Nf6 4 e3 Bg4.} Qb6 {[%emt 0:00:00]} 7. c5 {[%emt 0:00:07]} Qxb3 {[%emt 0:00:00]} 8. axb3 {[%emt 0:00:04] The position is equal.} Be7 {[%emt 0:00:00]} 9. Bf4 {[%emt 0:06:19]} O-O {[%emt 0:00:00]} 10. Bg2 {[%emt 0:02:37]} Nbd7 {[%emt 0:00:00]} 11. b4 {[%emt 0:01:58] [#]} a6 $146 {[%emt 0:00:00]} ({Predecessor:} 11... h6 12. b5 g5 13. bxc6 bxc6 14. Bc1 Ne4 15. Nd2 Nxd2 16. Bxd2 Bf6 17. e4 Bg6 18. Be3 a5 19. e5 Be7 20. Kd2 Rfb8 {½-½ (20) Janoszka,A (2315)-Giesen,D (2269) Germany 2006}) 12. O-O {[%emt 0:01:59]} h6 {[%emt 0:00:00]} 13. h3 {[%emt 0:01:46]} Rfe8 {[%emt 0:00:00]} 14. g4 {[%emt 0:00:13]} Bh7 {[%emt 0:00:00]} 15. Bh2 {[%emt 0:04:59]} Bf8 {[%emt 0:00:00]} 16. Rfc1 {[%emt 0:05:18]} g5 {[%emt 0:00:00]} 17. e3 {[%emt 0:00:27]} Bg7 {[%emt 0:00:00]} 18. Re1 {[%emt 0:07:34]} Kh8 {[%emt 0:00:00]} 19. Nd2 {[%emt 0:00:52][%cal Bf3d2,Bd2b3,Bb3a5][%mdl 32]} e5 {[%emt 0:00:00]} 20. Nb3 {[%emt 0:00:12]} Ng8 {[%emt 0:00:00]} (20... exd4 $14 21. Nxd4 Kg8) 21. Na5 $16 {[%emt 0:00:15]} Ra7 {[%emt 0:00:00]} 22. Red1 {[%emt 0:08:57]} (22. Na4 $16) 22... exd4 $11 {[%emt 0:00:00]} 23. exd4 {[%emt 0:00:06][%cal Oc3d5]} Nf8 {[%emt 0:00:00]} 24. Rd2 {[%emt 0:02:07]} Ne6 {[%emt 0:00:00] Against Bc7} 25. Re1 {[%emt 0:01:38]} Re7 {[%emt 0:00:00]} (25... Ne7 $15) 26. Bd6 {[%emt 0:06:57]} (26. Bb8 $1 $14 Ra8 27. Bd6) 26... Rd7 {[%emt 0:00:00]} 27. Nb3 {[%emt 0:01:20]} Ne7 {[%emt 0:01:52][%cal Bg8e7,Be7c8,Bc8a7][%mdl 32]} 28. Na4 {[%emt 0:01:38] aiming for Nb6.} Nc8 {[%emt 0:01:33]} 29. Bg3 {[%emt 0:04:43]} Ra8 {[%emt 0:00:33][%cal Ba7a8,Ba8e8,Be8e1,Be1e7][%mdl 32]} 30. Nc3 {[%emt 0:03:21]} Na7 {[%emt 0:00:28]} 31. Na4 {[%emt 0:01:56]} Re8 {[%emt 0:01:11]} (31... Rg8 $5 {[%cal Ra7b5]}) 32. Nb6 {[%emt 0:01:00]} Rdd8 {[%emt 0:00:04]} 33. Na5 {[%emt 0:06:11]} Nxd4 {[%emt 0:00:37]} 34. Re3 {[%emt 0:00:06]} Nc2 {[%emt 0:01:35]} 35. Rf3 {[%emt 0:04:36]} (35. Nxb7 $15 Nxe3 36. fxe3) 35... Re1+ {[%emt 0:05:38]} (35... Bxb2 36. Rxf7 Re1+ 37. Kh2 $16) (35... Nxb4 36. Nxb7 Re1+ 37. Kh2 $11) 36. Kh2 {[%emt 0:00:10] [#]} Re7 {[%emt 0:00:38]} ({Worse is} 36... Nxb4 37. Nxb7 Rde8 38. Rb3 $11) ({Resist} 36... Bxb2 37. Rxf7 Rde8 {[#]} 38. Rxh7+ $1 (38. Nxb7 Bg6 $14) (38. Rxb7 Bc3 $16) 38... Kxh7 39. Rxc2 $16) 37. Nbc4 {[%emt 0:09:39]} Nd4 $2 {[%emt 0:00:37]} ({And not} 37... Nxb4 38. Nd6 Rdd7 39. Rb3 $15) ({Better is} 37... Nb5 $19 {White must now prevent ...Nbd4.} 38. Na3 Nbd4 39. Nxc2 Nxc2) 38. Rxd4 $4 {[%emt 0:00:41][%mdl 8192]} Bxd4 $19 {[%emt 0:00:01]} 39. Nd6 {[%emt 0:00:20]} Rdd7 {[%emt 0:00:44]} 40. Nf5 {[%emt 0:03:13]} (40. Bf1 $142) 40... Bxf5 {[%emt 0:00:13] Black is clearly winning.} 41. Rxf5 {[%emt 0:00:03]} Nb5 {[%emt 0:00:13]} 42. h4 {[%emt 0:00:21]} f6 {[%emt 0:00:19][%cal Bf7f6,Bf6e5][%mdl 32]} 43. f4 {[%emt 0:01:51]} gxf4 {[%emt 0:00:35]} 44. Bxf4 {[%emt 0:00:54]} Be5 {[%emt 0:00:05]} 45. Bxe5 {[%emt 0:00:28]} fxe5 {[%emt 0:00:06] Weighted Error Value: White=0.43/Black=0.20 (precise)} 0-1

[Event "Charlotte Summer IM B 2022"]
[Site "Charlotte"]
[Date "2022.07.27"]
[Round "6.3"]
[White "Homa, Seth"]
[Black "Ringoir, Tanguy"]
[Result "0-1"]
[ECO "E14"]
[WhiteElo "2237"]
[BlackElo "2490"]
[Annotator "TA"]
[PlyCount "66"]
[EventDate "2022.07.24"]
[EventType "tourn"]
[EventCountry "USA"]
[SourceTitle "playchess.com"]
[Source "ChessBase"]
[SourceQuality "1"]
[TimeControl "5400+30"]

{[%evp 19,66,0,0,0,0,0,3,0,0,0,15,29,12,3,10,7,0,6,18,16,15,9,10,16,26,-34,-10,-8,-13,-35,-32,-45,-63,-49,21,-970,-962,-952,-918,-990,-994,-953,-980,-966,-953,-4894,-2225,-2268,-877]} 1. d4 {[%emt 0:00:02]} d5 {[%emt 0:02:26]} 2. c4 {[%emt 0:00:29]} c6 {[%emt 0:00:04]} 3. Nc3 {[%emt 0:00:16]} Nf6 {[%emt 1:29:30]} 4. e3 {[%emt 0:00:10]} e6 {[%emt 0:00:00]} 5. Nf3 {[%emt 0:00:09]} Nbd7 {[%emt 0:01:00]} 6. Be2 {[%emt 0:00:19]} b6 {[%emt 0:00:00]} 7. O-O {[%emt 0:00:23]} Bb7 {[%emt 0:00:00]} 8. b3 {[%emt 0:00:09]} Bd6 {[%emt 0:00:00]} 9. Bb2 {[%emt 0:00:12]} O-O {[%emt 0:00:00]} 10. Bd3 {[%emt 0:00:31]} c5 {[%emt 0:00:00]} 11. cxd5 {[%emt 0:00:32] E14: Queen's Indian: Classical Variation (4 e3).} Nxd5 {[%emt 0:00:00]} 12. Nxd5 {[%emt 0:00:24]} Bxd5 {[%emt 0:00:00] [#]} 13. Rc1 $146 {[%emt 0:03:51] The position is equal.} ({Predecessor:} 13. e4 Bb7 14. d5 exd5 15. exd5 Nf6 16. Qc2 Bxd5 17. Bxf6 Qxf6 18. Bxh7+ Kh8 19. Be4 Bxe4 20. Qxe4 Rfe8 21. Qc2 Re6 22. Rae1 Rae8 23. Rxe6 Rxe6 24. Rd1 Qf4 25. Qd3 g6 {½-½ (24) Real de Azua,E (2496)-Pichot,A (2564) Villa Martelli 2018}) 13... cxd4 {[%emt 0:00:00]} 14. Nxd4 {[%emt 0:01:38]} Nc5 {[%emt 0:00:00]} 15. Bc4 {[%emt 0:04:08]} Bxc4 {[%emt 0:00:00]} (15... Qh4 16. f4 Bxc4 17. Rxc4 $16) 16. Rxc4 {[%emt 0:00:24]} Qd7 {[%emt 0:00:00]} (16... Qh4 17. f4 $16 (17. Nf3 Qe7 $14)) 17. Nf3 {[%emt 0:09:58]} Rfd8 {[%emt 0:00:00][%cal Od6h2]} 18. Qc2 {[%emt 0:17:26]} a5 {[%emt 0:00:00]} 19. Rg4 {[%emt 0:21:31]} e5 $1 {[%emt 0:00:00][%cal Be6e5,Be5e4][%mdl 32]} 20. Rh4 {[%emt 0:00:08]} e4 $1 {[%emt 0:00:00]} 21. Ng5 $1 {[%emt 0:01:27][%csl LRe4,LRh7]} Qe7 {[%emt 0:00:00]} 22. Rh5 {[%emt 0:05:05]} (22. f4 $11 h6 {[#]} 23. Qc3 $1) 22... Rac8 {[%emt 0:00:00] [#] White must now prevent ...Ne6.} 23. Qe2 {[%emt 0:07:08] And now Qg4 would win.} (23. Nxh7 Nd3 24. Qe2 Nxb2 25. Qxb2 Rc5 $17) ({Not} 23. Qc3 $2 Ne6 24. Qe1 Nxg5 $19) 23... h6 $36 {[%emt 0:00:00][%mdl 2048] Black has good play.} 24. f4 {[%emt 0:17:49][%cal Oe2g4] Threatens to win with Qg4!} Nd3 {[%emt 0:00:00]} (24... hxg5 25. fxg5 Nd3 26. Qg4 $11) 25. Bxg7 {[%emt 0:01:22]} Kxg7 {[%emt 0:00:00]} 26. Qg4 {[%emt 0:00:14] White threatens Ne6+ and mate.} hxg5 {[%emt 0:00:58]} (26... Qf6 $1 $15 27. Nxf7+ Qg6 28. Nxh6 Qxg4 29. Nxg4 Be7) 27. Qf5 $4 {[%emt 0:03:45][%mdl 8192] Now White is beyond hope.} (27. Rxg5+ $11 Qxg5 28. fxg5) 27... Qe6 $19 {[%emt 0:03:31] Black is clearly winning.} 28. Qh7+ {[%emt 0:00:14]} Kf8 {[%emt 0:00:10] Strongly threatening ...Bc5.} 29. Rh6 {[%emt 0:00:17]} Qd5 {[%emt 0:01:24] Hoping for ...Bc5.} (29... f6 $2 30. Qh8+ (30. fxg5 Be5 $16) 30... Qg8 31. Qxf6+ Ke8 32. Rh8 $18) 30. fxg5 {[%emt 0:00:57]} Be5 {[%emt 0:01:15] aiming for ...Rc1.} 31. g6 {[%emt 0:00:18]} Rc1 {[%emt 0:00:39]} 32. Rh5 {[%emt 0:03:37]} Rxf1+ {[%emt 0:00:02]} 33. Kxf1 {[%emt 0:00:07]} Qe6 {[%emt 0:00:28] Weighted Error Value: White=0.62/Black=0.05 (flawless)} 0-1

[Event "Charlotte Summer IM B 2022"]
[Site "Charlotte"]
[Date "2022.07.27"]
[Round "6.4"]
[White "Mishra, Prateek"]
[Black "Adu, Oladapo"]
[Result "1/2-1/2"]
[ECO "B22"]
[WhiteElo "2204"]
[BlackElo "2056"]
[Annotator "TA"]
[PlyCount "181"]
[EventDate "2022.07.24"]
[EventType "tourn"]
[EventCountry "USA"]
[SourceTitle "playchess.com"]
[Source "ChessBase"]
[SourceQuality "1"]
[TimeControl "5400+30"]

{[%evp 15,181,10,44,18,19,10,22,0,0,-22,25,14,11,20,9,10,13,0,112,99,105,103,114,111,120,133,124,147,147,122,166,163,163,162,320,304,328,337,337,313,313,249,244,116,113,121,118,118,121,121,122,107,175,177,195,185,175,185,158,184,243,247,264,248,347,372,476,205,353,353,353,353,335,158,308,308,725,156,156,156,156,156,156,156,156,156,156,156,775,156,156,0,156,156,156,156,156,156,331,156,156,156,156,147,147,147,147,147,152,152,173,152,152,152,152,152,152,147,5065,5054,775,147,147,26,147,147,147,147,147,147,147,147,147,147,147,147,152,147,147,147,147,147,147,147,147,147,147,147,147,147,147,147,147,147,147,20,20,0,147,0,147,147,147,147,147,147,147,147]} 1. e4 {[%emt 0:04:16]} c5 {[%emt 0:02:16]} 2. Nf3 {[%emt 0:00:05]} e6 {[%emt 0:00:05]} 3. c3 {[%emt 0:00:22]} d5 {[%emt 0:00:09]} 4. exd5 {[%emt 0:00:06]} Qxd5 {[%emt 0:00:06]} 5. d4 {[%emt 0:00:13]} Nf6 {[%emt 0:00:06]} 6. Na3 {[%emt 0:00:08]} a6 {[%emt 0:00:11]} 7. Nc4 {[%emt 0:01:34]} Nbd7 {[%emt 0:00:11]} 8. Be2 {[%emt 0:01:33]} cxd4 {[%emt 0:02:19] 8...b5 might become the main line.} (8... b5 $5 {[%cal Rb5c4]} 9. Ne3 Qd6 $14) 9. Qxd4 {[%emt 0:04:19] B22: Sicilian: 2 c3.} Bc5 {[%emt 0:01:25]} 10. Qxd5 {[%emt 0:11:56]} Nxd5 {[%emt 0:00:03]} 11. a4 {[%emt 0:01:10] The position is equal.} b6 {[%emt 0:00:01] [#]} 12. Nfd2 $146 {[%emt 0:08:31]} ({Predecessor:} 12. O-O Bb7 13. Rd1 O-O 14. Nfe5 Nxe5 15. Nxe5 Rfd8 16. Bf3 Ne7 17. Bf4 Bxf3 18. Nxf3 {1-0 (47) Harika,D (2517)-Bacrot,E (2638) Chess.com INT 2022}) 12... N7f6 {[%emt 0:05:43]} (12... O-O {is more appropriate.}) 13. Nb3 {[%emt 0:01:45]} Be7 {[%emt 0:00:44]} 14. Bf3 {[%emt 0:01:08]} Rb8 {[%emt 0:00:41]} 15. Bg5 {[%emt 0:09:00][%cal Bc1g5,Bg5h4,Bh4g3][%mdl 32]} Bb7 {[%emt 0:00:33]} 16. Bh4 {[%emt 0:10:18]} b5 {[%emt 0:01:46]} (16... Nf4 $1 $11 {remains equal.} 17. Bxb7 Rxb7 18. Bxf6 gxf6) 17. axb5 $16 {[%emt 0:02:01]} axb5 {[%emt 0:00:01]} 18. Nca5 {[%emt 0:00:29]} Ba8 {[%emt 0:00:01]} 19. Bg3 {[%emt 0:01:57] Inhibits Bd6.} Rc8 {[%emt 0:00:01]} 20. Nd4 {[%emt 0:02:07]} b4 {[%emt 0:00:02]} 21. c4 {[%emt 0:03:41]} Nb6 {[%emt 0:02:03]} 22. Ndc6 $1 {[%emt 0:02:26]} Nxc4 {[%emt 0:03:34]} 23. Nxc4 {[%emt 0:04:25][%cal Ba5c4,Bc4b6,Bb6c8][%mdl 32]} Bxc6 {[%emt 0:00:02]} 24. Nb6 $1 {[%emt 0:00:01]} (24. Bxc6+ Rxc6 25. Ra8+ Bd8 26. Nd6+ Ke7 27. Ra7+ Bc7 $15) 24... Bxf3 $2 {[%emt 0:00:44]} (24... O-O) 25. Nxc8 $18 {[%emt 0:00:08]} Bxg2 {[%emt 0:00:12]} 26. Rg1 {[%emt 0:00:06]} Bc6 {[%emt 0:07:49]} 27. Ra7 {[%emt 0:02:12]} Nd5 {[%emt 0:06:12]} 28. Nxe7 {[%emt 0:06:12]} Nxe7 {[%emt 0:00:02]} 29. Bd6 {[%emt 0:00:38]} (29. Be5 $6 Nf5) (29. Kd2 $18) 29... Nc8 $16 {[%emt 0:00:46][%csl LRa7,LRd6]} 30. Rc7 {[%emt 0:00:12] 0x0.0002deefdd5adp-1022s more active pieces. The black rooks are badly placed.} Nxd6 {[%emt 0:00:08]} 31. Rxc6 {[%emt 0:00:06][%mdl 4096] Endgame KRR-KRN} Kd7 {[%emt 0:00:02]} 32. Rb6 {[%emt 0:00:15][%mdl 1024] White has strong compensation.} g6 {[%emt 0:02:24]} 33. Ke2 {[%emt 0:00:34]} Ke7 {[%emt 0:00:33]} (33... Rc8 $16) 34. Rd1 $1 $18 {[%emt 0:01:13]} (34. Rxb4 $6 Rc8 $16) 34... Nf5 {[%emt 0:00:04]} 35. Rb7+ {[%emt 0:00:42]} (35. Rxb4 Nd6 36. Rb6 Rd8) 35... Kf6 {[%emt 0:00:01]} 36. Rdd7 {[%emt 0:00:10]} ({Don't do} 36. Rxb4 h5 $16) 36... Rf8 {[%emt 0:00:01]} 37. Rxb4 {[%emt 0:00:31]} g5 {[%emt 0:00:09]} (37... e5 $142 38. Rb6+ Kg5) 38. Rbb7 {[%emt 0:00:55]} h5 {[%emt 0:00:02]} 39. b4 {[%emt 0:00:22][%cal Bb2b4,Bb4b5][%mdl 32]} g4 {[%emt 0:01:17]} 40. b5 {[%emt 0:00:16] Black must now prevent b6.} Ke5 {[%emt 0:00:03]} 41. Rxf7 {[%emt 0:01:41]} (41. b6 $142) 41... Nd4+ {[%emt 0:00:14]} (41... Rd8 {keeps fighting.} 42. Rfd7 Nd4+ 43. Kd3 Rxd7 44. Rxd7 Nxb5) 42. Kd3 $1 {[%emt 0:00:52]} Rxf7 {[%emt 0:00:24]} 43. Rxf7 {[%emt 0:00:07] aiming for Rh7.} Nxb5 {[%emt 0:00:01] KR-KN} 44. Rh7 {[%emt 0:01:05]} (44. f3 $18 {has better winning chances.}) 44... Kf4 {[%emt 0:00:19]} (44... Nd4 $16 45. Rxh5+ Nf5) 45. Rxh5 {[%emt 0:00:22]} e5 $2 {[%emt 0:00:01]} (45... Nd6 46. Rh8 Nf5) 46. Ke2 $2 {[%emt 0:00:26]} (46. Kc4 $18 Nd6+ 47. Kd3) 46... Nd4+ {[%emt 0:00:23]} 47. Kf1 {[%emt 0:00:15]} Nf5 {[%emt 0:01:26]} 48. Rh8 {[%emt 0:01:35]} Ke4 {[%emt 0:00:11]} 49. Kg2 {[%emt 0:01:35]} Kf4 {[%emt 0:00:03]} 50. Ra8 {[%emt 0:00:57]} Nh4+ {[%emt 0:00:10]} 51. Kf1 {[%emt 0:00:38]} Nf3 $2 {[%emt 0:00:17]} (51... Nf5 $16 52. Rh8 Nd4) 52. Rh8 $2 {[%emt 0:01:12]} (52. Rf8+ $1 $18 {is the precise move to win.} Kg5 53. h3) 52... Nd4 $16 {[%emt 0:00:56]} 53. Kg2 {[%emt 0:02:26]} Nf5 $1 {[%emt 0:00:12]} 54. Rh7 {[%emt 0:02:39]} Ke4 {[%emt 0:00:25]} 55. Ra7 {[%emt 0:01:25] Ra4+ is the strong threat.} Kf4 {[%emt 1:10:26]} 56. Ra4+ {[%emt 0:00:15]} Kg5 $2 {[%emt 0:00:00]} (56... Nd4 $16 {was worth a try.} 57. Rb4 Kf5) 57. Kf1 {[%emt 0:01:55]} (57. f3 $1 $18 {[%cal Rf3g4] and the rest is easy.} Nd4 58. fxg4 Kxg4 59. h3+ Kf4 60. Kf2) 57... Nd4 {[%emt 0:00:00]} 58. Ra3 {[%emt 0:02:28]} Kf4 {[%emt 0:00:00]} 59. h3 {[%emt 0:01:39]} gxh3 {[%emt 0:00:00]} 60. Rxh3 {[%emt 0:00:07]} Nf3 {[%emt 0:00:00]} 61. Rh8 {[%emt 0:00:17]} Ng5 {[%emt 0:00:00]} 62. Ke2 {[%emt 0:00:07]} Ke4 {[%emt 0:00:00]} 63. Rh4+ {[%emt 0:00:15]} Kf5 {[%emt 0:00:00]} 64. Ke3 $1 {[%emt 0:00:14]} Kf6 {[%emt 0:00:00]} 65. Kd3 {[%emt 0:00:42] Strongly threatening Kc4.} Kf5 {[%emt 0:00:00]} 66. Kc4 {[%emt 0:01:36] Threatens to win with Kd5.} Nf3 $2 {[%emt 0:00:00][%mdl 8192]} (66... Ne6 $16) 67. Rh8 {[%emt 0:00:24]} Ke4 {[%emt 0:00:00] [#]} 68. Rf8 $2 {[%emt 0:00:10]} (68. Rh3 $1 $18 {[%cal Rh3g3]} Nd2+ 69. Kc5) 68... Nd4 {[%emt 0:00:00] [#]} 69. Rf6 {[%emt 0:00:48]} (69. Kc3 $1 $16) 69... Nf3 {[%emt 0:00:00]} (69... Ne2 $11 {keeps the balance.}) 70. Kc3 {[%emt 0:01:23]} Nh4 {[%emt 0:00:00]} 71. Kd2 {[%emt 0:00:38]} Nf3+ {[%emt 0:00:00]} 72. Ke2 {[%emt 0:00:09]} Nd4+ {[%emt 0:00:00]} 73. Kf1 {[%emt 0:00:12]} Nf5 {[%emt 0:00:00]} 74. Kg2 {[%emt 0:01:13]} Kf4 {[%emt 0:00:00]} 75. Rf8 {[%emt 0:01:05]} Kg4 {[%emt 0:00:00]} 76. Ra8 {[%emt 0:00:56]} Nh4+ {[%emt 0:00:00]} 77. Kf1 {[%emt 0:00:06] And now Ra4+ would win.} Nf5 {[%emt 0:00:00]} 78. Ke2 {[%emt 0:00:36]} Kf4 {[%emt 0:00:00]} 79. Kd3 {[%emt 0:00:24]} e4+ {[%emt 0:00:00]} 80. Ke2 {[%emt 0:00:09]} Nd4+ {[%emt 0:00:00]} 81. Kd2 {[%emt 0:00:27]} Nf5 {[%emt 0:00:00]} 82. Re8 {[%emt 0:00:31]} Kf3 {[%emt 0:00:00]} 83. Rf8 {[%emt 0:00:34]} ({Don't take} 83. Ke1 $6 e3 84. fxe3 Nxe3 $14) 83... Kf4 {[%emt 0:00:00]} 84. Kc3 {[%emt 0:00:42]} Ke5 {[%emt 0:00:00]} 85. Re8+ {[%emt 0:01:38]} (85. Rd8 $16) 85... Kf4 $1 $11 {[%emt 0:00:00]} 86. Kd2 {[%emt 0:00:11]} Nd4 {[%emt 0:00:00]} (86... Kf3 $11 87. Rf8 (87. Ke1 e3 $14) 87... Kf4) 87. Rf8+ {[%emt 0:00:36]} Nf5 {[%emt 0:00:00]} 88. Ke2 {[%emt 0:00:39] White is clearly better.} Ke5 {[%emt 0:00:00]} 89. Rf7 {[%emt 0:01:07]} Nd4+ {[%emt 0:00:00]} 90. Kd2 {[%emt 0:00:08]} Nf5 {[%emt 0:00:00]} 91. Kc3 {[%emt 0:00:47] Weighted Error Value: White=0.46/Black=0.31} 1/2-1/2